[Event "*** SCC Grand Prix: Titled Tuesday Blitz"]
[Site "Chess.com"]
[Date "2020.06.02"]
[Round "7"]
[White "Aguiar94"]
[Black "Rodalquilar"]
[Result "0-1"]
[WhiteElo "2415"]
[BlackElo "2619"]
[TimeControl "180+1"]
[EndTime "11:20:04 PDT"]
[Termination "Rodalquilar won by resignation"]

1. e4 {[%clk 0:03:00.9]} 1... d5 {[%clk 0:03:00.4]} 2. exd5 {[%clk 0:03:00.6]}
2... Qxd5 {[%clk 0:03:01.3]} 3. Nf3 {[%clk 0:03:00.2]} 3... Bg4 {[%clk
0:02:59.8]} 4. Be2 {[%clk 0:03:00.1]} 4... Nc6 {[%clk 0:03:00.3]} 5. h3 {[%clk
0:02:52.3]} 5... Bxf3 {[%clk 0:02:52.7]} 6. Bxf3 {[%clk 0:02:53.2]} 6... Qe6+
{[%clk 0:02:51.7]} 7. Qe2 {[%clk 0:02:46.1]} 7... Qxe2+ {[%clk 0:02:49.4]} 8.
Bxe2 {[%clk 0:02:47]} 8... Nd4 {[%clk 0:02:49.8]} 9. Bd3 {[%clk 0:02:45.5]} 9...
O-O-O {[%clk 0:02:48.5]} 10. O-O {[%clk 0:02:30.9]} 10... e5 {[%clk 0:02:48.1]}
11. Re1 {[%clk 0:02:29.4]} 11... Bd6 {[%clk 0:02:42.9]} 12. c3 {[%clk
0:02:27.1]} 12... Nc6 {[%clk 0:02:37.7]} 13. Bc4 {[%clk 0:02:22.5]} 13... f6
{[%clk 0:02:13.8]} 14. d3 {[%clk 0:02:19.4]} 14... Nge7 {[%clk 0:02:12.7]} 15.
Be3 {[%clk 0:02:13.2]} 15... Kb8 {[%clk 0:02:12.6]} 16. Be6 {[%clk 0:02:04.1]}
16... Rhf8 {[%clk 0:02:01.4]} 17. Nd2 {[%clk 0:01:56.1]} 17... f5 {[%clk
0:02:01.7]} 18. Nf3 {[%clk 0:01:56]} 18... h6 {[%clk 0:01:58.4]} 19. Rad1 {[%clk
0:01:53.5]} 19... g5 {[%clk 0:01:57.9]} 20. a3 {[%clk 0:01:48.3]} 20... Rf6
{[%clk 0:01:56.2]} 21. Ba2 {[%clk 0:01:47.4]} 21... Ng6 {[%clk 0:01:52.3]} 22.
Nxg5 {[%clk 0:01:31.4]} 22... hxg5 {[%clk 0:01:50.6]} 23. Bxg5 {[%clk
0:01:31.9]} 23... Rdf8 {[%clk 0:01:45]} 24. Bxf6 {[%clk 0:01:31.3]} 24... Rxf6
{[%clk 0:01:45.9]} 25. g3 {[%clk 0:01:29.1]} 25... a6 {[%clk 0:01:42.8]} 26. h4
{[%clk 0:01:24.5]} 26... Nh8 {[%clk 0:01:03.9]} 27. Bd5 {[%clk 0:01:18]} 27...
Ne7 {[%clk 0:01:03.1]} 28. Ba2 {[%clk 0:01:13.8]} 28... Nf7 {[%clk 0:01:03.2]}
29. Kg2 {[%clk 0:01:07.2]} 29... Nh6 {[%clk 0:01:03.3]} 30. f3 {[%clk
0:00:59.7]} 30... Rg6 {[%clk 0:01:02.9]} 31. Kf2 {[%clk 0:00:51]} 31... e4
{[%clk 0:01:02.2]} 32. f4 {[%clk 0:00:49.1]} 32... Ng4+ {[%clk 0:00:59.6]} 33.
Kg2 {[%clk 0:00:42.2]} 33... Nf6 {[%clk 0:00:55.2]} 34. dxe4 {[%clk 0:00:25]}
34... Nxe4 {[%clk 0:00:55.1]} 35. h5 {[%clk 0:00:11.3]} 35... Rxg3+ {[%clk
0:00:54.3]} 36. Kh2 {[%clk 0:00:09.6]} 36... Bxf4 {[%clk 0:00:54.4]} 37. Rd8+
{[%clk 0:00:05.1]} 37... Ka7 {[%clk 0:00:54.1]} 38. Kh1 {[%clk 0:00:03]} 38...
Nf2+ {[%clk 0:00:46.2]} 0-1

[Event "*** SCC Grand Prix: Titled Tuesday Blitz"]
[Site "Chess.com"]
[Date "2020.06.02"]
[Round "7"]
[White "kudesnik84"]
[Black "Morshynska"]
[Result "0-1"]
[WhiteElo "2342"]
[BlackElo "2187"]
[TimeControl "180+1"]
[EndTime "11:20:04 PDT"]
[Termination "Morshynska won on time"]

1. e4 {[%clk 0:03:00.9]} 1... Nc6 {[%clk 0:02:56.4]} 2. Nf3 {[%clk 0:02:53.4]}
2... d6 {[%clk 0:02:52.5]} 3. Bc4 {[%clk 0:02:45]} 3... g6 {[%clk 0:02:42.8]} 4.
d4 {[%clk 0:02:40.4]} 4... Bg7 {[%clk 0:02:36.9]} 5. c3 {[%clk 0:02:30.9]} 5...
e6 {[%clk 0:02:26.7]} 6. Bg5 {[%clk 0:02:07.6]} 6... Nge7 {[%clk 0:02:22.2]} 7.
Qd2 {[%clk 0:02:04.3]} 7... h6 {[%clk 0:02:20.9]} 8. Be3 {[%clk 0:02:02.9]} 8...
g5 {[%clk 0:02:08.8]} 9. h4 {[%clk 0:02:01.5]} 9... g4 {[%clk 0:02:03.7]} 10.
Nh2 {[%clk 0:02:01.1]} 10... d5 {[%clk 0:01:51]} 11. Bd3 {[%clk 0:01:52.7]}
11... e5 {[%clk 0:01:15.4]} 12. h5 {[%clk 0:01:30.7]} 12... Be6 {[%clk
0:01:10.9]} 13. Na3 {[%clk 0:01:20.2]} 13... Qd7 {[%clk 0:00:59.1]} 14. dxe5
{[%clk 0:00:38.8]} 14... Nxe5 {[%clk 0:00:54.7]} 15. Bc2 {[%clk 0:00:27.7]}
15... O-O-O {[%clk 0:00:42.4]} 16. O-O-O {[%clk 0:00:21.9]} 16... Qc6 {[%clk
0:00:37.6]} 17. f4 {[%clk 0:00:16.2]} 17... dxe4 {[%clk 0:00:23.6]} 18. Qe2
{[%clk 0:00:12.9]} 18... Nd3+ {[%clk 0:00:17.1]} 19. Kb1 {[%clk 0:00:08.2]}
19... Bxc3 {[%clk 0:00:14.7]} 20. Bxd3 {[%clk 0:00:03.6]} 20... exd3 {[%clk
0:00:14.1]} 21. Qf2 {[%clk 0:00:01.9]} 21... Bf6 {[%clk 0:00:12.1]} 22. Bd2
{[%clk 0:00:02]} 22... b6 {[%clk 0:00:11.9]} 23. Nf1 {[%clk 0:00:01.9]} 23...
Qd5 {[%clk 0:00:12]} 24. b3 {[%clk 0:00:01.3]} 24... Qd4 {[%clk 0:00:11.4]} 25.
Qxd4 {[%clk 0:00:01.2]} 25... Bxd4 {[%clk 0:00:12.3]} 26. Ng3 {[%clk 0:00:01.8]}
26... Bf6 {[%clk 0:00:12]} 0-1

[Event "*** SCC Grand Prix: Titled Tuesday Blitz"]
[Site "Chess.com"]
[Date "2020.06.02"]
[Round "7"]
[White "reniite"]
[Black "harperchesstt"]
[Result "0-1"]
[WhiteElo "1808"]
[BlackElo "2182"]
[TimeControl "180+1"]
[EndTime "11:20:04 PDT"]
[Termination "harperchesstt won by resignation"]

1. e4 {[%clk 0:03:00.9]} 1... c5 {[%clk 0:02:59.3]} 2. Nf3 {[%clk 0:02:58.7]}
2... d6 {[%clk 0:02:59.3]} 3. d4 {[%clk 0:02:58.3]} 3... cxd4 {[%clk 0:03:00.2]}
4. Nxd4 {[%clk 0:02:58.1]} 4... Nf6 {[%clk 0:03:00.8]} 5. Nc3 {[%clk 0:02:57.8]}
5... g6 {[%clk 0:03:01.1]} 6. g3 {[%clk 0:02:55.7]} 6... Bg7 {[%clk 0:03:00.8]}
7. Bg2 {[%clk 0:02:51.9]} 7... O-O {[%clk 0:03:01.4]} 8. O-O {[%clk 0:02:44.5]}
8... Nfd7 {[%clk 0:03:01.8]} 9. b3 {[%clk 0:01:58.3]} 9... Nc6 {[%clk
0:02:56.8]} 10. Nde2 {[%clk 0:01:57.5]} 10... Nc5 {[%clk 0:02:34.7]} 11. Bb2
{[%clk 0:01:45.4]} 11... Bg4 {[%clk 0:02:30.1]} 12. h3 {[%clk 0:01:40.5]} 12...
Bd7 {[%clk 0:02:25.2]} 13. Rb1 {[%clk 0:01:28.4]} 13... a6 {[%clk 0:02:15.2]}
14. a4 {[%clk 0:01:27.5]} 14... Nb4 {[%clk 0:02:07.3]} 15. Kh2 {[%clk
0:01:19.8]} 15... Rc8 {[%clk 0:02:04.2]} 16. Nd4 {[%clk 0:01:13.6]} 16... Qb6
{[%clk 0:01:57.1]} 17. Nce2 {[%clk 0:01:09.4]} 17... e5 {[%clk 0:01:28]} 18. Nf3
{[%clk 0:00:38]} 18... Nxe4 {[%clk 0:01:27.8]} 19. Nxe5 {[%clk 0:00:38.3]} 19...
dxe5 {[%clk 0:01:02.9]} 20. Bxe4 {[%clk 0:00:38]} 20... Be6 {[%clk 0:00:48.3]}
21. Ba3 {[%clk 0:00:33.6]} 21... Rfd8 {[%clk 0:00:46.8]} 22. Qe1 {[%clk
0:00:32.1]} 22... Nxc2 {[%clk 0:00:45.4]} 23. Bxc2 {[%clk 0:00:31.5]} 23... Rxc2
{[%clk 0:00:45]} 24. Bb4 {[%clk 0:00:26.7]} 24... Rxe2 {[%clk 0:00:39.5]} 25.
Qxe2 {[%clk 0:00:25.3]} 25... Qxb4 {[%clk 0:00:39.4]} 26. Rfd1 {[%clk
0:00:23.3]} 26... Re8 {[%clk 0:00:35.4]} 27. Qf3 {[%clk 0:00:21.6]} 27... Bf5
{[%clk 0:00:27.3]} 28. Rbc1 {[%clk 0:00:20.5]} 28... Qe7 {[%clk 0:00:18.9]} 29.
Qe2 {[%clk 0:00:18.8]} 29... e4 {[%clk 0:00:18.8]} 30. Rc4 {[%clk 0:00:18.1]}
30... Qe6 {[%clk 0:00:18.9]} 31. Rdc1 {[%clk 0:00:17.6]} 31... Bxh3 {[%clk
0:00:18.2]} 32. Rc7 {[%clk 0:00:17.4]} 32... Bg4 {[%clk 0:00:17.1]} 33. Qe3
{[%clk 0:00:17.8]} 33... Bf3 {[%clk 0:00:17.3]} 34. Kg1 {[%clk 0:00:15.5]} 34...
Qh3 {[%clk 0:00:16.4]} 35. Qxf3 {[%clk 0:00:14.4]} 35... exf3 {[%clk 0:00:16.3]}
0-1

[Event "*** SCC Grand Prix: Titled Tuesday Blitz"]
[Site "Chess.com"]
[Date "2020.06.02"]
[Round "7"]
[White "marszach123"]
[Black "dianamirza"]
[Result "0-1"]
[WhiteElo "2121"]
[BlackElo "2022"]
[TimeControl "180+1"]
[EndTime "11:20:06 PDT"]
[Termination "dianamirza won on time"]

1. e4 {[%clk 0:03:00.9]} 1... e5 {[%clk 0:02:52.4]} 2. Nf3 {[%clk 0:03:01.2]}
2... d6 {[%clk 0:02:52.4]} 3. d4 {[%clk 0:02:59.7]} 3... exd4 {[%clk 0:02:53.3]}
4. Nxd4 {[%clk 0:02:58.7]} 4... Nf6 {[%clk 0:02:54.2]} 5. Nc3 {[%clk 0:02:58.2]}
5... g6 {[%clk 0:02:54.4]} 6. Be3 {[%clk 0:02:52.8]} 6... Bg7 {[%clk 0:02:54.4]}
7. f3 {[%clk 0:02:52.4]} 7... O-O {[%clk 0:02:54]} 8. Qd2 {[%clk 0:02:52.6]}
8... d5 {[%clk 0:02:46.5]} 9. e5 {[%clk 0:02:29.7]} 9... Nfd7 {[%clk 0:02:45.6]}
10. f4 {[%clk 0:02:16.5]} 10... c5 {[%clk 0:02:44.3]} 11. Nxd5 {[%clk
0:01:36.1]} 11... cxd4 {[%clk 0:02:43.5]} 12. Bxd4 {[%clk 0:01:36.7]} 12... Nc6
{[%clk 0:02:34.9]} 13. Bc3 {[%clk 0:01:26.4]} 13... Nb6 {[%clk 0:02:22]} 14.
Nxb6 {[%clk 0:00:49.4]} 14... Qxb6 {[%clk 0:02:12.4]} 15. O-O-O {[%clk
0:00:48.2]} 15... Be6 {[%clk 0:02:06.8]} 16. Kb1 {[%clk 0:00:41.4]} 16... Rfd8
{[%clk 0:02:05]} 17. Bd3 {[%clk 0:00:39.9]} 17... a5 {[%clk 0:01:53.3]} 18. Qe2
{[%clk 0:00:32.5]} 18... Nb4 {[%clk 0:01:41.9]} 19. Bc4 {[%clk 0:00:22.1]} 19...
Bxc4 {[%clk 0:01:34.7]} 20. Qxc4 {[%clk 0:00:21.7]} 20... Rac8 {[%clk
0:01:32.1]} 21. Qe2 {[%clk 0:00:19.6]} 21... Nd5 {[%clk 0:01:24.8]} 22. Bd4
{[%clk 0:00:16.2]} 22... Qc6 {[%clk 0:01:10.1]} 23. g3 {[%clk 0:00:12.8]} 23...
Nb4 {[%clk 0:01:08.2]} 24. Bc3 {[%clk 0:00:11.1]} 24... Qa4 {[%clk 0:00:57.3]}
25. a3 {[%clk 0:00:09.6]} 25... Nd5 {[%clk 0:00:49.2]} 26. Bd4 {[%clk
0:00:07.8]} 26... Nxf4 {[%clk 0:00:40.1]} 27. gxf4 {[%clk 0:00:07.3]} 27... Rxd4
{[%clk 0:00:38.8]} 28. Rxd4 {[%clk 0:00:04.7]} 28... Qxd4 {[%clk 0:00:38.4]} 29.
f5 {[%clk 0:00:05]} 29... Qxe5 {[%clk 0:00:36.9]} 30. Qxe5 {[%clk 0:00:03.3]}
30... Bxe5 {[%clk 0:00:37.8]} 31. fxg6 {[%clk 0:00:03.6]} 31... hxg6 {[%clk
0:00:37.8]} 32. c3 {[%clk 0:00:04]} 32... Kg7 {[%clk 0:00:35.5]} 33. Kc2 {[%clk
0:00:03.2]} 33... Rh8 {[%clk 0:00:35.2]} 34. h3 {[%clk 0:00:02.5]} 34... Rd8
{[%clk 0:00:28.5]} 0-1

[Event "*** SCC Grand Prix: Titled Tuesday Blitz"]
[Site "Chess.com"]
[Date "2020.06.02"]
[Round "7"]
[White "chesslh19"]
[Black "joksijoksi"]
[Result "0-1"]
[WhiteElo "2175"]
[BlackElo "2343"]
[TimeControl "180+1"]
[EndTime "11:20:07 PDT"]
[Termination "joksijoksi won by resignation"]

1. e4 {[%clk 0:03:00.9]} 1... e6 {[%clk 0:02:54]} 2. d4 {[%clk 0:02:59.7]} 2...
d5 {[%clk 0:02:54.4]} 3. Nd2 {[%clk 0:03:00]} 3... Nf6 {[%clk 0:02:54.4]} 4. e5
{[%clk 0:03:00.3]} 4... Nfd7 {[%clk 0:02:54.5]} 5. Bd3 {[%clk 0:03:01]} 5... c5
{[%clk 0:02:55]} 6. c3 {[%clk 0:03:01.7]} 6... Nc6 {[%clk 0:02:55.6]} 7. Ne2
{[%clk 0:03:02.2]} 7... cxd4 {[%clk 0:02:55.6]} 8. cxd4 {[%clk 0:03:02.8]} 8...
f6 {[%clk 0:02:56.5]} 9. exf6 {[%clk 0:03:03]} 9... Nxf6 {[%clk 0:02:57.4]} 10.
Nf3 {[%clk 0:03:03.4]} 10... Bd6 {[%clk 0:02:58]} 11. O-O {[%clk 0:03:02.5]}
11... O-O {[%clk 0:02:58.6]} 12. Bf4 {[%clk 0:03:02.5]} 12... Bxf4 {[%clk
0:02:59]} 13. Nxf4 {[%clk 0:03:03.2]} 13... Ne4 {[%clk 0:02:59.7]} 14. Qc1
{[%clk 0:03:03.5]} 14... Ng5 {[%clk 0:02:58.5]} 15. Nxg5 {[%clk 0:03:03.3]}
15... Qxg5 {[%clk 0:02:59.4]} 16. Ne2 {[%clk 0:03:03.8]} 16... Qf6 {[%clk
0:02:58.7]} 17. Qe3 {[%clk 0:03:02]} 17... e5 {[%clk 0:02:58.7]} 18. dxe5 {[%clk
0:03:00]} 18... Nxe5 {[%clk 0:02:59.6]} 19. Rad1 {[%clk 0:02:31.7]} 19... Be6
{[%clk 0:02:56.4]} 20. Nd4 {[%clk 0:02:27.8]} 20... Bf7 {[%clk 0:02:54.6]} 21.
Rfe1 {[%clk 0:01:46.5]} 21... Rfe8 {[%clk 0:02:30]} 22. Qg3 {[%clk 0:01:12.9]}
22... Nc4 {[%clk 0:02:15.1]} 23. b3 {[%clk 0:00:51.9]} 23... Nb2 {[%clk
0:02:10.7]} 24. Rxe8+ {[%clk 0:00:26.8]} 24... Rxe8 {[%clk 0:02:08.6]} 25. Bb5
{[%clk 0:00:19.4]} 25... Nxd1 {[%clk 0:01:46.8]} 26. Bxe8 {[%clk 0:00:19.6]}
26... Qxd4 {[%clk 0:01:29.4]} 27. Bxf7+ {[%clk 0:00:18.4]} 27... Kxf7 {[%clk
0:01:30.3]} 28. Qc7+ {[%clk 0:00:11.5]} 28... Ke6 {[%clk 0:00:55]} 29. Qc8+
{[%clk 0:00:10.8]} 29... Kd6 {[%clk 0:00:50.4]} 30. Qd8+ {[%clk 0:00:10.3]}
30... Kc6 {[%clk 0:00:49.7]} 31. Qe8+ {[%clk 0:00:05.4]} 31... Kb6 {[%clk
0:00:43.6]} 32. Qd8+ {[%clk 0:00:05.2]} 32... Ka6 {[%clk 0:00:41.9]} 33. Qd6+
{[%clk 0:00:04.2]} 33... b6 {[%clk 0:00:26.4]} 34. Qa3+ {[%clk 0:00:04.2]} 34...
Kb5 {[%clk 0:00:25.8]} 0-1

[Event "*** SCC Grand Prix: Titled Tuesday Blitz"]
[Site "Chess.com"]
[Date "2020.06.02"]
[Round "7"]
[White "Olga_Zhuravleva"]
[Black "TigranMukhutdinov"]
[Result "0-1"]
[WhiteElo "2263"]
[BlackElo "2453"]
[TimeControl "180+1"]
[EndTime "11:20:09 PDT"]
[Termination "TigranMukhutdinov won by resignation"]

1. e4 {[%clk 0:03:00.9]} 1... c5 {[%clk 0:02:59.8]} 2. Nf3 {[%clk 0:03:00.2]}
2... Nc6 {[%clk 0:03:00.4]} 3. Nc3 {[%clk 0:02:59.7]} 3... e5 {[%clk 0:02:57.6]}
4. Bc4 {[%clk 0:02:58.5]} 4... Be7 {[%clk 0:02:54.7]} 5. O-O {[%clk 0:02:57.5]}
5... d6 {[%clk 0:02:53.5]} 6. h3 {[%clk 0:02:55.9]} 6... Nf6 {[%clk 0:02:53.6]}
7. d3 {[%clk 0:02:55.9]} 7... O-O {[%clk 0:02:53.8]} 8. a4 {[%clk 0:02:49.3]}
8... a6 {[%clk 0:02:50.9]} 9. Nd5 {[%clk 0:02:48.6]} 9... Be6 {[%clk 0:02:50.8]}
10. c3 {[%clk 0:02:47.5]} 10... Bxd5 {[%clk 0:02:48.2]} 11. Bxd5 {[%clk
0:02:43.1]} 11... Nxd5 {[%clk 0:02:47.9]} 12. exd5 {[%clk 0:02:44]} 12... Nb8
{[%clk 0:02:48.7]} 13. Qe2 {[%clk 0:02:32.7]} 13... f5 {[%clk 0:02:46.5]} 14.
Nh2 {[%clk 0:02:31]} 14... Nd7 {[%clk 0:02:44.9]} 15. f4 {[%clk 0:02:30.9]}
15... Bf6 {[%clk 0:02:41.8]} 16. Nf3 {[%clk 0:02:28.2]} 16... Re8 {[%clk
0:02:40.7]} 17. fxe5 {[%clk 0:02:18.5]} 17... Nxe5 {[%clk 0:02:39.3]} 18. Nxe5
{[%clk 0:02:16.6]} 18... Bxe5 {[%clk 0:02:39.6]} 19. Qf2 {[%clk 0:02:12.2]}
19... g6 {[%clk 0:02:39.9]} 20. Bf4 {[%clk 0:02:07.5]} 20... Bxf4 {[%clk
0:02:34]} 21. Qxf4 {[%clk 0:02:08.4]} 21... Re5 {[%clk 0:02:34.5]} 22. Rae1
{[%clk 0:02:02.4]} 22... Qe7 {[%clk 0:02:15.1]} 23. Rxe5 {[%clk 0:01:56.4]}
23... dxe5 {[%clk 0:02:16]} 24. Qg3 {[%clk 0:01:56.8]} 24... c4 {[%clk
0:02:12.4]} 25. Rxf5 {[%clk 0:01:47.1]} 25... cxd3 {[%clk 0:02:09.9]} 26. Rxe5
{[%clk 0:01:46.8]} 26... Qf6 {[%clk 0:01:58.7]} 27. Re1 {[%clk 0:01:16.3]} 27...
Qb6+ {[%clk 0:01:53.6]} 28. Qf2 {[%clk 0:00:59.2]} 28... d2 {[%clk 0:01:53.4]}
29. Rd1 {[%clk 0:00:58.1]} 29... Qxb2 {[%clk 0:01:52.1]} 30. Qxd2 {[%clk
0:00:57.1]} 30... Qxd2 {[%clk 0:01:48]} 31. Rxd2 {[%clk 0:00:56.6]} 31... b5
{[%clk 0:01:48.9]} 32. axb5 {[%clk 0:00:55.6]} 32... axb5 {[%clk 0:01:49.8]} 33.
Kf2 {[%clk 0:00:55.8]} 33... Kf7 {[%clk 0:01:47.6]} 34. Ke3 {[%clk 0:00:56]}
34... Rc8 {[%clk 0:01:43.5]} 35. Kd4 {[%clk 0:00:52.7]} 35... Rc4+ {[%clk
0:01:43.5]} 36. Kd3 {[%clk 0:00:53.3]} 36... Ke7 {[%clk 0:01:40.9]} 37. Rb2
{[%clk 0:00:51.3]} 37... Rc5 {[%clk 0:01:38.6]} 38. Kd4 {[%clk 0:00:51.3]} 38...
Kd6 {[%clk 0:01:35.7]} 39. Ra2 {[%clk 0:00:31.2]} 39... Rxd5+ {[%clk 0:01:32.6]}
40. Ke3 {[%clk 0:00:31.9]} 40... Kc5 {[%clk 0:01:32.8]} 41. Ra7 {[%clk
0:00:31.2]} 41... Kc4 {[%clk 0:01:30.7]} 42. Rc7+ {[%clk 0:00:31.1]} 42... Kb3
{[%clk 0:01:26.3]} 43. Ke4 {[%clk 0:00:29.8]} 43... Rh5 {[%clk 0:01:23.6]} 44.
Kd4 {[%clk 0:00:28.7]} 44... Rh4+ {[%clk 0:01:21.5]} 45. Kd3 {[%clk 0:00:27.9]}
45... Rc4 {[%clk 0:01:18.3]} 46. Rxc4 {[%clk 0:00:26]} 46... bxc4+ {[%clk
0:01:19.2]} 47. Kd4 {[%clk 0:00:26.5]} 47... g5 {[%clk 0:01:12]} 48. g3 {[%clk
0:00:25.4]} 48... h5 {[%clk 0:01:10.4]} 49. h4 {[%clk 0:00:18.9]} 49... g4
{[%clk 0:01:08.3]} 50. Ke4 {[%clk 0:00:15.1]} 50... Kxc3 {[%clk 0:01:08.4]} 51.
Kf4 {[%clk 0:00:16]} 51... Kd3 {[%clk 0:01:07.1]} 52. Kg5 {[%clk 0:00:16.9]}
52... c3 {[%clk 0:01:07.6]} 53. Kxh5 {[%clk 0:00:17.2]} 53... c2 {[%clk
0:01:08.5]} 54. Kxg4 {[%clk 0:00:17.8]} 54... c1=Q {[%clk 0:01:08.3]} 55. Kf5
{[%clk 0:00:15]} 55... Qh6 {[%clk 0:01:07.9]} 56. g4 {[%clk 0:00:14]} 56... Qxh4
{[%clk 0:01:07.4]} 57. g5 {[%clk 0:00:14.9]} 57... Kd4 {[%clk 0:01:07.9]} 0-1

[Event "*** SCC Grand Prix: Titled Tuesday Blitz"]
[Site "Chess.com"]
[Date "2020.06.02"]
[Round "7"]
[White "Illingworth"]
[Black "gmcorrales"]
[Result "0-1"]
[WhiteElo "2891"]
[BlackElo "2780"]
[TimeControl "180+1"]
[EndTime "11:20:11 PDT"]
[Termination "gmcorrales won by resignation"]

1. d4 {[%clk 0:03:00.9]} 1... Nf6 {[%clk 0:02:59.8]} 2. Nf3 {[%clk 0:03:01.3]}
2... g6 {[%clk 0:02:52.2]} 3. g3 {[%clk 0:03:01.1]} 3... Bg7 {[%clk 0:02:52.4]}
4. Bg2 {[%clk 0:03:01.6]} 4... O-O {[%clk 0:02:52.6]} 5. O-O {[%clk 0:03:02.1]}
5... d5 {[%clk 0:02:53]} 6. c4 {[%clk 0:03:02.3]} 6... Nc6 {[%clk 0:02:53.6]} 7.
Nbd2 {[%clk 0:02:59.3]} 7... Re8 {[%clk 0:02:41.9]} 8. cxd5 {[%clk 0:02:52.5]}
8... Nxd5 {[%clk 0:02:42.8]} 9. e4 {[%clk 0:02:52.4]} 9... Nb6 {[%clk
0:02:32.1]} 10. d5 {[%clk 0:02:52.3]} 10... Nb8 {[%clk 0:02:26.3]} 11. Nb3
{[%clk 0:02:45.9]} 11... c6 {[%clk 0:02:26]} 12. Nh4 {[%clk 0:02:35.8]} 12...
cxd5 {[%clk 0:02:25.3]} 13. exd5 {[%clk 0:02:36.7]} 13... N8d7 {[%clk
0:02:25.7]} 14. d6 {[%clk 0:02:33.2]} 14... Ne5 {[%clk 0:02:17.6]} 15. dxe7
{[%clk 0:02:28.1]} 15... Qxe7 {[%clk 0:02:18.5]} 16. Be3 {[%clk 0:01:47.4]}
16... Bg4 {[%clk 0:02:15.2]} 17. Qb1 {[%clk 0:01:44.7]} 17... Nec4 {[%clk
0:02:14.1]} 18. Bc5 {[%clk 0:01:38.7]} 18... Qd7 {[%clk 0:01:58.8]} 19. Qc2
{[%clk 0:01:28.4]} 19... Re2 {[%clk 0:01:53.5]} 20. Qd1 {[%clk 0:01:26.3]} 20...
Rd2 {[%clk 0:01:01.7]} 21. Qb1 {[%clk 0:01:23.7]} 21... Rxb2 {[%clk 0:00:55.7]}
22. Qc1 {[%clk 0:01:23.8]} 22... Be2 {[%clk 0:00:48.2]} 23. Re1 {[%clk
0:01:21.7]} 23... Re8 {[%clk 0:00:42.2]} 24. Nf3 {[%clk 0:01:18.1]} 24... Na4
{[%clk 0:00:21]} 25. Bd4 {[%clk 0:01:09.5]} 25... Bxf3 {[%clk 0:00:18.2]} 26.
Rxe8+ {[%clk 0:01:05.4]} 26... Qxe8 {[%clk 0:00:19.1]} 27. Bxf3 {[%clk
0:01:00.8]} 27... Bxd4 {[%clk 0:00:18.8]} 28. Nxd4 {[%clk 0:00:59.4]} 28... b5
{[%clk 0:00:17.2]} 29. Bc6 {[%clk 0:00:44]} 29... Qe5 {[%clk 0:00:17]} 30. Nf3
{[%clk 0:00:28.7]} 30... Qc5 {[%clk 0:00:17]} 31. Qe1 {[%clk 0:00:20.4]} 31...
Qxc6 {[%clk 0:00:17]} 32. Ng5 {[%clk 0:00:19.2]} 32... h6 {[%clk 0:00:15.3]} 33.
Ne4 {[%clk 0:00:19.1]} 33... Nc5 {[%clk 0:00:15.3]} 34. Nc3 {[%clk 0:00:13.7]}
34... Nd3 {[%clk 0:00:15.5]} 35. Qf1 {[%clk 0:00:08.6]} 35... Rxf2 {[%clk
0:00:14.8]} 0-1

[Event "*** SCC Grand Prix: Titled Tuesday Blitz"]
[Site "Chess.com"]
[Date "2020.06.02"]
[Round "7"]
[White "VladimirBelous"]
[Black "rpragchess"]
[Result "1-0"]
[WhiteElo "2755"]
[BlackElo "2862"]
[TimeControl "180+1"]
[EndTime "11:20:11 PDT"]
[Termination "VladimirBelous won by checkmate"]

1. c4 {[%clk 0:03:00.9]} 1... b6 {[%clk 0:02:53.7]} 2. e4 {[%clk 0:02:57.6]}
2... Bb7 {[%clk 0:02:52.2]} 3. Nc3 {[%clk 0:02:58.2]} 3... e5 {[%clk 0:02:52.3]}
4. Nf3 {[%clk 0:02:54.3]} 4... Nc6 {[%clk 0:02:52.1]} 5. Be2 {[%clk 0:02:53.7]}
5... Bc5 {[%clk 0:02:52.2]} 6. Nxe5 {[%clk 0:02:43.9]} 6... Nxe5 {[%clk
0:02:38]} 7. d4 {[%clk 0:02:43.4]} 7... Nf6 {[%clk 0:02:03.2]} 8. dxc5 {[%clk
0:02:26]} 8... bxc5 {[%clk 0:02:02.7]} 9. f4 {[%clk 0:02:22.5]} 9... Nxe4 {[%clk
0:01:39]} 10. Nxe4 {[%clk 0:02:06.3]} 10... Bxe4 {[%clk 0:01:39.9]} 11. fxe5
{[%clk 0:02:06.5]} 11... Bxg2 {[%clk 0:01:39]} 12. Rg1 {[%clk 0:01:58.1]} 12...
Qh4+ {[%clk 0:01:38.4]} 13. Kd2 {[%clk 0:01:58.6]} 13... Qd4+ {[%clk 0:01:37.8]}
14. Kc2 {[%clk 0:01:37.9]} 14... Be4+ {[%clk 0:01:36.9]} 15. Kb3 {[%clk
0:01:37.8]} 15... Rb8+ {[%clk 0:01:24.1]} 16. Ka3 {[%clk 0:01:37.9]} 16... Qxe5
{[%clk 0:01:24.3]} 17. Rg5 {[%clk 0:00:49.1]} 17... f5 {[%clk 0:01:18.8]} 18.
Bd3 {[%clk 0:00:37.7]} 18... Qd6 {[%clk 0:00:52.8]} 19. Bc2 {[%clk 0:00:31.8]}
19... Qa6+ {[%clk 0:00:40]} 20. Ba4 {[%clk 0:00:32]} 20... O-O {[%clk
0:00:36.7]} 21. Bd2 {[%clk 0:00:22.8]} 21... d5 {[%clk 0:00:23.3]} 22. cxd5
{[%clk 0:00:20.3]} 22... c4 {[%clk 0:00:20.4]} 23. b4 {[%clk 0:00:20.5]} 23...
Qd6 {[%clk 0:00:16.9]} 24. Bc3 {[%clk 0:00:20.2]} 24... Rf7 {[%clk 0:00:16]} 25.
Qd4 {[%clk 0:00:19.7]} 25... Qe7 {[%clk 0:00:07]} 26. Rag1 {[%clk 0:00:19.4]}
26... Kf8 {[%clk 0:00:04.3]} 27. Rxg7 {[%clk 0:00:19.2]} 27... Rxg7 {[%clk
0:00:02.7]} 28. Rxg7 {[%clk 0:00:19.6]} 28... c5 {[%clk 0:00:01.5]} 29. bxc5
{[%clk 0:00:13.3]} 29... Qh4 {[%clk 0:00:01.1]} 30. Rg8+ {[%clk 0:00:12]} 30...
Kf7 {[%clk 0:00:01.5]} 31. Qg7# {[%clk 0:00:11.6]} 1-0